Cogmind - Beta 9.6 @@@ ROGUE MODE // 2020.05.27 @ 20:59:16 // AFD2020/Player2 Player: Terminus Result: Core destroyed Performance ------------- Evolutions (0) 0 Regions Visited (4) 800 Robots Destroyed (27) 135 Value Destroyed (157) 157 Prototype IDs (0) 0 Alien Tech Used (0) 0 Bonus (123) 123 TOTAL SCORE: 1215 Bonus ------- Follower Combat Kills 244 Friendly Fire -121 Cogmind --------- Core Integrity 0/250 Matter 157/300 Energy 250/250 System Corruption 0% Temperature Cool (0) Movement Walking (180) Ox2 Location -9/Mines Parts ------- > --- POWER (1) -------- Ion Engine > --- PROPULSION (2) --- Aluminum Leg Carbon-fiber Leg > --- UTILITY (2) ------ High-capacity Storage Unit High-capacity Storage Unit > --- WEAPON (2) ------- Assault Rifle Assault Rifle > --- INVENTORY (20) --- Ion Engine Light Angular Momentum Engine Aluminum Leg Aluminum Leg Heat Sink Improved Heat Sink High-capacity Storage Unit Experimental Sensor Array Signal Interpreter Light Armor Plating Hacking Suite Medium Laser Medium Laser Small Laser Grenade Launcher Grenade Launcher Peak State ------------ > --- POWER ------------ Ion Engine > --- PROPULSION ------- Aluminum Leg Carbon-fiber Leg > --- UTILITY ---------- High-capacity Storage Unit High-capacity Storage Unit > --- WEAPON ----------- Beam Rifle Light Assault Rifle > --- INVENTORY -------- Ion Engine Ion Engine Light Angular Momentum Engine Aluminum Leg Aluminum Leg Heat Sink Improved Heat Sink Large Storage Unit Experimental Sensor Array Signal Interpreter Light Armor Plating Hacking Suite Medium Laser Medium Laser Small Laser Assault Rifle Assault Rifle Grenade Launcher Grenade Launcher [Rating: 13] Favorites ----------- Power Ion Engine Engine Ion Engine Propulsion Aluminum Leg Leg Aluminum Leg Utility High-capacity Storage Unit Storage High-capacity Storage Unit Weapon Light Assault Rifle Energy Gun Medium Laser Ballistic Gun Light Assault Rifle Launcher Grenade Launcher Build | -11 -10 -10 -10 -9 ------- Run | Scr Mat Min Exi Min Slots Evolved . | . . . . . Power . | . . . . . Propulsion . | . . . . . Utility . | . . . . . Weapon . | . . . . . Parts Attached 22 | 6 6 3 2 5 Power 3 | 1 1 . . 1 Engine 3 | 1 1 . . 1 Core . | . . . . . Reactor . | . . . . . Propulsion 4 | 2 1 1 . . Treads . | . . . . . Leg 4 | 2 1 1 . . Wheel . | . . . . . Hover . | . . . . . Flight . | . . . . . Utility 7 | 1 4 . 2 . Device . | . . . . . Storage 7 | 1 4 . 2 . Processor . | . . . . . Hackware . | . . . . . Protection . | . . . . . Artifact . | . . . . . Weapon 8 | 2 . 2 . 4 Energy Gun 3 | 1 . 2 . . Energy Cannon . | . . . . . Ballistic Gun 4 | 1 . . . 3 Ballistic Cannon . | . . . . . Launcher 1 | . . . . 1 Special Weapon . | . . . . . Impact Weapon . | . . . . . Slashing Weapon . | . . . . . Piercing Weapon . | . . . . . Special Melee Weapon . | . . . . . Unidentified Prototypes . | . . . . . Parts Lost 3 | . . 1 . 2 Power . | . . . . . Propulsion . | . . . . . Utility . | . . . . . Weapon 3 | . . 1 . 2 Highest Loss Streak 2 | . . 1 . 2 Average Slot Usage (%) 99 | . 99 99 100 99 Engine 14 | . 14 14 14 14 Leg 28 | . 28 28 28 28 Storage 27 | . 27 28 28 28 Energy Gun 13 | . 14 13 14 13 Ballistic Gun 13 | . 14 14 14 12 Naked Turns . | . . . . . Heaviest Build 73 | 12 72 73 72 72 Greatest Support 25 | 20 20 25 25 25 Greatest Overweight (x) 3 | 1 3 3 2 2 Average Overweight (x) 2 | . 2 2 2 2 Largest Inventory Capacity 20 | 6 20 20 20 20 Average Capacity 18 | 5 16 20 20 20 Most Carried 20 | 1 20 20 20 19 Average Carried 14 | . 9 18 19 18 Final Capacity 20 | 6 20 20 20 20 Final Carried 20 | 1 20 19 19 16 Class Distribution -------------------- 75% | Hauler-Mutant 24% | Mutant Dominant Class ---------------- Mutant | -10/Materials Hauler-Mutant | -10/Mines Hauler-Mutant | -10/Exiles Hauler-Mutant | -9/Mines Resources | -11 -10 -10 -10 -9 ----------- Run | Scr Mat Min Exi Min Matter Collected 393 | 266 89 38 . . Remotely . | . . . . . Salvage Created 426 | 87 213 76 . 50 Parts 31 | 1 19 11 . . Haulers Intercepted 1 | . 1 . . . Recyclers Shooed 1 | . 1 . . . Parts Field Recycled . | . . . . . Retrieved Matter . | . . . . . Parts Self-Destructed . | . . . . . Prevented . | . . . . . Kills | -11 -10 -10 -10 -9 ------- Run | Scr Mat Min Exi Min Combat Hostiles Destroyed 20 | . 2 5 . 13 Guns 8 | . 2 5 . 1 AOE 12 | . . . . 12 Classes Destroyed 8 | 1 6 . . 1 Worker 1 | . 1 . . . Hauler 1 | . 1 . . . Recycler 2 | 1 1 . . . Operator 2 | . 2 . . . Watcher 1 | . 1 . . . Swarmer 6 | . 1 5 . . Grunt 1 | . 1 . . . Assembled 13 | . . . . 13 Best Kill Streak 13 | 1 2 4 . 13 Combat Bots Only 13 | . 1 4 . 13 Max Kills in Single Turn 4 | 1 1 1 . 4 Gunslinging . | . . . . . Exploded 4 | . . . . 4 Melee . | . . . . . Uniques/NPCs Destroyed . | . . . . . Combat | -11 -10 -10 -10 -9 -------- Run | Scr Mat Min Exi Min Damage Taken 760 | . 166 223 . 371 Core 122 | . 30 32 . 60 Absorbed by Shields . | . . . . . Core Remaining (%) 100 | 100 . . . . Volleys Fired 59 | 6 29 13 . 11 Largest 2 | 2 2 2 . 2 Hottest 76 | 70 70 76 . 70 Shots Fired 110 | 12 58 26 . 14 Gun 103 | 12 58 26 . 7 Cannon . | . . . . . Launcher 7 | . . . . 7 Special . | . . . . . Kinetic 53 | 6 29 13 . 5 Thermal 50 | 6 29 13 . 2 Explosive 7 | . . . . 7 Electromagnetic . | . . . . . Robot Hit Streak 9 | 6 9 8 . 3 Robot Miss Streak 4 | 2 4 3 . 4 Penetration Max . | . . . . . Secondary Targets 5 | . 2 3 . . Max Gunslinging Chain 1 | . 1 1 . . Shots Hit Robots 67 | 9 38 16 . 4 Core Hits 61 | 3 19 6 . 33 Critical Hits . | . . . . . Critical Kills . | . . . . . Critical Parts Destroyed . | . . . . . Melee Attacks . | . . . . . Impact . | . . . . . Slashing . | . . . . . Piercing . | . . . . . Sneak Attacks . | . . . . . Combat Hostiles . | . . . . . Follow-up Attacks . | . . . . . Damage Inflicted 1514 | 102 406 147 . 859 Guns 685 | 102 406 147 . 30 Cannons . | . . . . . Explosions 829 | . . . . 829 Melee . | . . . . . Ramming . | . . . . . Kinetic 297 | 52 167 61 . 17 Thermal 388 | 50 239 86 . 13 Explosive 829 | . . . . 829 Electromagnetic . | . . . . . Impact . | . . . . . Slashing . | . . . . . Piercing . | . . . . . Highest Corruption . | . . . . . Average Corruption . | . . . . . Corruption Purged . | . . . . . Overload Shots . | . . . . . Overflow Damage 11 | . . . . 11 Projectiles . | . . . . . Explosions 11 | . . . . 11 Melee . | . . . . . Knockbacks . | . . . . . Impact . | . . . . . Kinetic . | . . . . . Secondary . | . . . . . Self-Inflicted Damage 23 | . . . . 23 Shots 1 | . . . . 1 Rammed . | . . . . . Targets Rammed . | . . . . . Kicked . | . . . . . Crushed . | . . . . . Highest Temperature 136 | 40 136 100 . 30 Average Temperature 36 | 20 35 46 . 14 Received Heat Transfer 54 | . 54 . . . Siege Activations . | . . . . . Robots Corrupted . | . . . . . Combat Hostiles . | . . . . . Parts Fried . | . . . . . Impact Corruptions . | . . . . . Robots Melted . | . . . . . Combat Hostiles . | . . . . . Parts Melted 1 | . 1 . . . Heat Transferred 1082 | 148 675 222 . 37 Parts Sabotaged . | . . . . . Parts Stolen . | . . . . . Parts Stripped . | . . . . . Power Chain Reactions . | . . . . . Missiles Intercepted . | . . . . . Alert | -11 -10 -10 -10 -9 ------- Run | Scr Mat Min Exi Min Peak Influence 314 | 5 293 314 . 37 Average Influence 127 | . 167 118 . 24 Maximum Alert Level 1 | . 1 1 . . Low Security (%) 82 | 100 77 83 . 100 Level 1 17 | . 22 16 . . Level 2 . | . . . . . Level 3 . | . . . . . Level 4 . | . . . . . Level 5 . | . . . . . High Security . | . . . . . Max Security . | . . . . . Squads Dispatched 3 | . 2 . . 1 Investigation . | . . . . . Extermination . | . . . . . Reinforcement 3 | . 2 . . 1 Assault . | . . . . . Garrison . | . . . . . Intercept . | . . . . . Construction Impeded 1 | . . . . 1 Haulers Reinforced . | . . . . . Stealth | -11 -10 -10 -10 -9 --------- Run | Scr Mat Min Exi Min Distress Signals 1 | . 1 . . . Communications Jammed . | . . . . . Distress Signals . | . . . . . Times Spotted 49 | . 18 10 . 21 Peak Tracking Total 18 | . 3 5 . 18 Tactical Retreats . | . . . . . Traps | -11 -10 -10 -10 -9 ------- Run | Scr Mat Min Exi Min Traps Triggered . | . . . . . Indirectly . | . . . . . Trap Hack Attempts . | . . . . . Triggered . | . . . . . Disarmed . | . . . . . Reprogrammed . | . . . . . Reused . | . . . . . Traps Extracted . | . . . . . Installed . | . . . . . Triggered . | . . . . . Machines | -11 -10 -10 -10 -9 ---------- Run | Scr Mat Min Exi Min Machines Disabled . | . . . . . Max in Single Turn . | . . . . . Machines Sabotaged . | . . . . . Garrisons Compromised . | . . . . . Overloaded Fab Kills . | . . . . . Fab Network Shutdowns . | . . . . . Hacking | -11 -10 -10 -10 -9 --------- Run | Scr Mat Min Exi Min Machines Accessed 7 | . 6 . 1 . Terminals 6 | . 6 . . . Fabricators . | . . . . . Repair Stations . | . . . . . Recycling Units . | . . . . . Scanalyzers . | . . . . . Garrison Access . | . . . . . Total Hacks 22 | . 17 . 5 . Successful 19 | . 14 . 5 . Failed 3 | . 3 . . . Catastrophic 2 | . 2 . . . Database Lockouts . | . . . . . Manual 15 | . 15 . . . Terminals 17 | . 17 . . . Fabricators . | . . . . . Repair Stations . | . . . . . Recycling Units . | . . . . . Scanalyzers . | . . . . . Garrison Access . | . . . . . Terminal Hacks 12 | . 7 . 5 . Record 5 | . . . 5 . Branch Access Points 1 | . 1 . . . Alert Level 2 | . 2 . . . Hauler Manifests 1 | . 1 . . . Zone Layout 3 | . 3 . . . Fabricator Hacks . | . . . . . Repair Station Hacks . | . . . . . Recycling Unit Hacks . | . . . . . Scanalyzer . | . . . . . Garrison Access Hacks . | . . . . . Unauthorized Hacks 7 | . 7 . . . Terminals 7 | . 7 . . . Assimilate 1 | . 1 . . . Botnet 6 | . 6 . . . Fabricators . | . . . . . Repair Stations . | . . . . . Recycling Units . | . . . . . Scanalyzers . | . . . . . Garrison Access . | . . . . . Data Cores Recovered . | . . . . . Used . | . . . . . Hacking Detections 5 | . 5 . . . Full Trace Events . | . . . . . Feedback Events . | . . . . . Feedback Blocked . | . . . . . Robot Schematics Acquired . | . . . . . Robots Built . | . . . . . Matter . | . . . . . Time . | . . . . . Total Robot Build Rating . | . . . . . Part Schematics Acquired . | . . . . . Parts Built . | . . . . . Matter . | . . . . . Time . | . . . . . Total Part Build Rating . | . . . . . Parts Repaired . | . . . . . Time . | . . . . . Parts Recycled . | . . . . . Recycled Matter . | . . . . . Retrieved Matter . | . . . . . Retrieved Components . | . . . . . Parts Scanalyzed . | . . . . . Part Schematics Acquired . | . . . . . Parts Damaged . | . . . . . Bothacking | -11 -10 -10 -10 -9 ------------ Run | Scr Mat Min Exi Min Used RIF Installer . | . . . . . Robots Hacked . | . . . . . Non-combat . | . . . . . Combat . | . . . . . Robot Hacks Applied . | . . . . . Relay Couplers Released . | . . . . . Robots Rewired . | . . . . . Allies Hacked . | . . . . . Hacks Repelled . | . . . . . Allies | -11 -10 -10 -10 -9 -------- Run | Scr Mat Min Exi Min Total Allies 1 | . 1 . . . Largest Group 1 | . 1 1 1 1 Highest-Rated Group 65 | . 62 65 65 65 Highest-Rated Ally 65 | . 62 65 65 65 Total Orders . | . . . . . Ally Attacks 42 | . 23 12 . 7 Total Damage 856 | . 374 268 . 214 Kills 19 | . 12 4 . 3 Allies Corrupted . | . . . . . Allies Melted . | . . . . . Intel | -11 -10 -10 -10 -9 ------- Run | Scr Mat Min Exi Min Robot Analysis Total . | . . . . . Derelict Logs Recovered 2 | . . 2 . . Drone Launches . | . . . . . Drone Recoveries . | . . . . . Exploration | -11 -10 -10 -10 -9 ------------- Run | Scr Mat Min Exi Min Turns Passed 2386 | 78 977 817 306 208 Spaces Moved 1112 | 51 441 391 167 62 Core 15 | 15 . . . . Treads . | . . . . . Legs 1097 | 36 441 391 167 62 Wheels . | . . . . . Hover . | . . . . . Flight . | . . . . . Fastest Speed 50 | 50 120 180 180 180 Average Speed 180 | 101 188 180 180 180 Slowest Speed 210 | 120 210 210 180 180 Overloaded Moves . | . . . . . Propulsion Burnouts . | . . . . . Robots Hopped . | . . . . . Cave-ins Triggered . | . . . . . Exploration Rate (%) 48 | 3 84 76 54 25 Regions Visited 4 Branch Regions 3 Pre-discovered Areas 1 | . . . 1 . Known Exits Taken 1 | . 1 . . . Unknown Exits Taken 3 | 1 . 1 1 . Scrap Searched 2 | . . 2 . . Spaces Dug . | . . . . . Terrain Destroyed 32 | . . . . 32 Melee . | . . . . . Projectile . | . . . . . AOE 32 | . . . . 32 Actions | -11 -10 -10 -10 -9 --------- Run | Scr Mat Min Exi Min Total 1394 | 63 533 481 173 144 Wait 163 | . 30 65 3 65 Move 1108 | 50 440 390 166 62 Hop . | . . . . . Pick Up 27 | 1 22 4 . . Fast Attach 7 | 6 1 . . . Attach 3 | . . 1 . 2 Detach . | . . . . . Swap 12 | . 5 2 2 3 Drop 15 | . 6 6 2 1 Fire 59 | 6 29 13 . 11 Melee . | . . . . . Ram . | . . . . . Kick . | . . . . . Crush . | . . . . . Escape Stasis . | . . . . . Rewire . | . . . . . Trap . | . . . . . Miscellaneous . | . . . . . Route ------- -11/Scrapyard -10/Materials (discovered 3 exits: [*Mat x2] / *Min) -10/Mines (discovered 3 exits: [*Mat x2] / *Exi) -10/Exiles -9/Mines History --------- Turn | Location | Event 7 | -11/Scrapyard | Discovered new exit (range 15) 79 | -11/Scrapyard | Entered Materials 305 | -10/Materials | Build established: Mutant 359 | -10/Materials | Discovered new exit (range 15) 443 | -10/Materials | Discovered new exit (range 10) 688 | -10/Materials | Identified exit to Mines 696 | -10/Materials | Discovered new exit (range 11) 882 | -10/Materials | Build established: Hauler-Mutant 1056 | -10/Materials | Entered Mines 1056 | -10/Mines | Accompanied by 1 ally 1061 | -10/Mines | Joined a pair of Derelicts in attacking an 0b10 outpost 1173 | -10/Mines | Found a damaged Exp. Sensor Array with a note attached 1182 | -10/Mines | Found Prototype Device 1394 | -10/Mines | Learned 4 Materials zone layouts 1453 | -10/Mines | Discovered new exit (range 5) 1455 | -10/Mines | Learned 8 Materials zone layouts 1636 | -10/Mines | Discovered new exit (range 11) 1861 | -10/Mines | Deemed a non-threat by the Exiles lab entrance 1863 | -10/Mines | Discovered new exit (range 5) 1873 | -10/Mines | Entered Exiles 1873 | -10/Exiles | Accompanied by 1 ally 1918 | -10/Exiles | Met 8R-AWN 1947 | -10/Exiles | Met EX-HEX 2034 | -10/Exiles | Met EX-DEC 2075 | -10/Exiles | Learned location of Zion (-7) 2161 | -10/Exiles | Discovered new exit (range 10) 2179 | -10/Exiles | Entered Mines 2179 | -9/Mines | Accompanied by 1 ally 2180 | -9/Mines | Assembled infested the area 2198 | -9/Mines | Met a Derelict bent on vengeance 2198 | -9/Mines | Core integrity fell below 50% 2220 | -9/Mines | Destroyed 13 combat bots 2380 | -9/Mines | Core integrity fell below 20% 2387 | -9/Mines | Core destroyed Last Messages --------------- 02315_ OQ-SV3(g): "TASTE MY VENGEANCE!" 02341_ R-06 Scavenger collects Flight Unit. 02358_ T-07 Excavator knocked back. 02373_ Lgt. Assault Rifle destroyed. 02373_ Med. Laser destroyed. 02374_ Player 2 attaches Lrg. Storage Unit. 02374_ U-05 Engineer lays Concrete. 02375_ D-53 Grenadier knocked back. 02375_ ALERT: Construction progress impeded, dispatching reinforcements to local area. 02376_ The unstable cave ceiling collapses. 02377_ U-05 Engineer destroyed. 02379_ OQ-SV3(g): "TASTE MY VENGEANCE!" 02381_ The unstable cave ceiling collapses. 02381_ T-07 Excavator destroyed. 02381_ Player 2 attaches Hcp. Storage Unit. 02382_ OQ-SV3(g): "I WILL HAVE VENGEANCE!" 02383_ OQ-SV3(g): "TASTE MY VENGEANCE!" 02384_ D-53 Grenadier destroyed. 02385_ The unstable cave ceiling collapses. Map ----- +----------------------------------------------------+ | ???????????????????????????????????????????? | | ????????????????????????##?????????????????? | | ??????????????????????## ##????????????????? | | ??????????????????????# #####????????????? | | ??????????????????##### ##???????????? | | ?????????????????## #####???????? | | ?????????????????# ##??????? | | ?????????????????# #??????? | | ??????????###????# % #??????? | | ??????????# #???# #?????????? | | ??????????# #??# # ????????? | | ???????????# ### ### ???????? | | ????????????# #? ???????? | | ????????????# % ### ???????? | | ????????????# ### # # ???????? | | ????????????# ##?? # ???????? | | ????????????## ##??? #???????? | | ?????????????## ###???? [#???????? | | ??????????????### #?????? %#???????? | | ????????????????# #???### # # #????????? | | ????????????????# #???# ### #??#####?? | | ????????????????# #???# #?####?# %### ##? | | ????????????????# #???# #??????# #? | | ????????????????# #???# #??????# " #? | | ????????????????# ##### ######## t #?? | | ????????????????# @ g #??? | | ????????????????#### #???? | | ??????????????????# ####### ###???? | | ?????????????????# ????####?????? | | ??????????????? # # # ##????????????? | | ???????????? % @ ?????????????? | | ???????????# ! ##????????????? | | ???????????## d =##?????????????? | | ????????????# * #?????????????? | | ????????????# ## #????????????? | | ????????????# #?## #???????????? | | ????????????# ???### #??????????? | | ????????????## ???????# #?????????? | | ?????????????# ???????? #????????? | | ?????????????## ????????? ????????? | | ??????????????###????????? ????????? | | ??????????????????????????? ??????????? | | ??????????????????????????? ????????????? | | ??????????????????????????? ???????????????? | | ???????????????????????????????????????????? | | ???????????????????????????????????????????? | | ???????????????????????????????????????????? | | ???????????????????????????????????????????? | | ???????????????????????????????????????????? | | ???????????????????????????????????????????? | +----------------------------------------------------+ Best States ------------- Heat Dissipation 25 Energy Generation 10 Energy Capacity 250 Matter Stores 300 Matter Capacity 300 Sight Range 16 Terrain Scan Density 10 Evasion (%) 40 Item Schematics ----------------- None Robot Schematics ------------------ None Fabricated ------------ Nothing Alien Tech Used ----------------- None Achievements -------------- None Challenges ------------ None Player 2 | -11 -10 -10 -10 -9 ---------- Run | Scr Mat Min Exi Min Slots Evolved . | . . . . . Power . | . . . . . Propulsion . | . . . . . Utility . | . . . . . Weapon . | . . . . . Parts Attached 13 | . 8 2 . 3 Parts Lost 6 | . . . . 6 Damage Taken 800 | . 85 114 . 601 Core 172 | . 24 26 . 122 Player 2/Cogmind (%) 58 | . 44 44 . 67 Absorbed by Shields . | . . . . . Damage Inflicted 856 | . 374 268 . 214 Player 2/Cogmind (%) 36 | . 47 64 . 19 Combat Hostiles Destroyed 16 | . 9 4 . 3 Player 2/Cogmind (%) 44 | . 81 44 . 18 Game ------ Seed ChargeCouplerInverter Manual? 0 Play Time 00:13:31 Cumulative 1024.3 hours Start 2020.05.27 @ 20:47:27 End 2020.05.27 @ 20:59:16 Sessions 1 Manual Loads 0 Difficulty Rogue Special Mode AFD2020/Player2 Game No. 333 Rogue 333 Adventurer 0 Explorer 0 Win Type - Total 76 Types 14/8/34/5/1/2/12 Lore% 97 Gallery% 96 Achievement% 85 Wizard Run 0 Options --------- ASCII 0 Keyboard 0 Movement Numpad Keybinds 0 Fullscreen 1 Font 18/SmallcapsGlow Map View 76x50 Tactical HUD 1 Map Filters NONE Filters NONE Steam 1 RUN: 7ad6a68f-930a-4898-89b8-cd8640db649e